fUST/lending_fUST_20250724
["ID","MTS","AMOUNT","RATE_DAILY","PERIOD"]
[374409588,1753291840451,-161.600706,0.00019178,2]
[374409590,1753291840460,-314.27,0.00019442,3]
[374409592,1753291840469,-460.0,0.00019452,2]
[374409595,1753291840479,-460.0,0.00019452,2]
[374409597,1753291840489,-460.0,0.00019452,2]
[374409599,1753291840501,-460.0,0.00019452,2]
[374409601,1753291840511,-460.0,0.00019452,2]
[374409603,1753291840520,-460.0,0.00019452,2]
[374409605,1753291840530,-460.0,0.00019452,2]
[374409607,1753291840539,-3350.23,0.00019452,2]
[374409609,1753291840550,-460.0,0.00019452,2]
[374409611,1753291840559,-460.0,0.00019452,2]
[374409613,1753291840568,-460.0,0.00019452,2]
[374409615,1753291840579,-460.0,0.00019452,2]
[374409617,1753291840589,-1097.25,0.00019452,2]
[374409619,1753291840599,-460.0,0.00019452,2]
[374409621,1753291840608,-460.0,0.00019452,2]
[374409623,1753291840618,-460.0,0.00019452,2]
[374409625,1753291840627,-460.0,0.00019452,2]
[374409627,1753291840636,-885.19,0.00019452,2]
[374409629,1753291840646,-1277.21,0.00019452,2]
[374409631,1753291840656,-460.0,0.00019452,2]
[374409633,1753291840672,-460.0,0.00019452,2]
[374409635,1753291840690,-460.0,0.00019452,2]
[374409637,1753291840699,-460.0,0.00019452,2]
[374409639,1753291840709,-362.23503757,0.00019452,2]
[374409641,1753291840719,-460.0,0.00019452,2]
[374409643,1753291840729,-1440.58,0.00019452,2]
[374409645,1753291840738,-460.0,0.00019452,2]
[374409647,1753291840751,-1608.72,0.00019452,2]
[374409649,1753291840771,-460.0,0.00019452,2]
[374409651,1753291840781,-460.0,0.00019452,2]
[374409653,1753291840790,-871.96,0.00019452,2]
[374409655,1753291840799,-460.0,0.00019452,2]
[374409657,1753291840808,-460.0,0.00019452,2]
[374409659,1753291840818,-460.0,0.00019452,2]
[374409661,1753291840827,-460.0,0.00019452,2]
[374409663,1753291840836,-460.0,0.00019452,2]
[374409665,1753291840845,-460.0,0.00019452,2]
[374409667,1753291840855,-490.93,0.00019452,2]
[374409669,1753291840865,-3462.1,0.00019452,2]
[374409671,1753291840875,-460.0,0.00019452,2]
[374409674,1753291840885,-460.0,0.00019452,2]
[374409676,1753291840896,-978.77,0.00019452,2]
[374409678,1753291840906,-460.0,0.00019452,2]
[374409680,1753291840918,-460.0,0.00019452,2]
[374409682,1753291840928,-460.0,0.00019452,2]
[374409683,1753291840937,-460.0,0.00019452,2]
[374409686,1753291840947,-460.0,0.00019452,2]
[374409687,1753291840956,-460.0,0.00019452,2]
[374409690,1753291840970,-460.0,0.00019452,2]
[374409692,1753291840980,-460.0,0.00019452,2]
[374409695,1753291840990,-460.0,0.00019452,2]
[374409697,1753291841000,-460.0,0.00019452,2]
[374409699,1753291841009,-460.0,0.00019452,2]
[374409701,1753291841020,-1236.42,0.00019452,2]
[374409703,1753291841029,-1365.08,0.00019452,2]
[374409705,1753291841038,-800.31,0.00019452,2]
[374409707,1753291841048,-460.0,0.00019452,2]
[374409709,1753291841058,-460.0,0.00019452,2]
[374409711,1753291841067,-1051.54,0.00019452,2]
[374409713,1753291841077,-411.3166723,0.00019708,2]
[374409715,1753291841088,-1257.07,0.00019711,3]
[374409717,1753291841098,-628.54,0.00019711,3]
[374409719,1753291841107,-157.13,0.00019711,3]
[374409721,1753291841117,-471.42,0.00019711,3]
[374409723,1753291841126,-460.0,0.00019726,2]
[374409725,1753291841135,-460.0,0.00019726,2]
[374409727,1753291841145,-460.0,0.00019726,2]
[374409729,1753291841155,-460.0,0.00019726,2]
[374409731,1753291841167,-460.0,0.00019726,2]
[374409733,1753291841176,-3350.23,0.00019726,2]
[374409735,1753291841187,-460.0,0.00019726,2]
[374409753,1753291841349,-460.0,0.00019726,2]
[374409755,1753291841360,-1097.25,0.00019726,2]
[374409757,1753291841369,-460.0,0.00019726,2]
[374409759,1753291841378,-460.0,0.00019726,2]
[374409761,1753291841388,-460.0,0.00019726,2]
[374409763,1753291841397,-460.0,0.00019726,2]
[374409766,1753291841407,-885.19,0.00019726,2]
[374409767,1753291841420,-1277.21,0.00019726,2]
[374409770,1753291841430,-460.0,0.00019726,2]
[374409771,1753291841439,-460.0,0.00019726,2]
[374409773,1753291841448,-460.0,0.00019726,2]
[374409775,1753291841457,-460.0,0.00019726,2]
[374409777,1753291841467,-460.0,0.00019726,2]
[374409779,1753291841477,-1440.58,0.00019726,2]
[374409781,1753291841486,-1608.72,0.00019726,2]
[374409783,1753291841497,-460.0,0.00019726,2]
[374409785,1753291841507,-871.96,0.00019726,2]
[374409787,1753291841517,-460.0,0.00019726,2]
[374409789,1753291841526,-460.0,0.00019726,2]
[374409791,1753291841536,-460.0,0.00019726,2]
[374409793,1753291841545,-460.0,0.00019726,2]
[374409795,1753291841554,-3462.1,0.00019726,2]
[374409797,1753291841564,-460.0,0.00019726,2]
[374409799,1753291841575,-978.77,0.00019726,2]
[374409802,1753291841584,-460.0,0.00019726,2]
[374409803,1753291841594,-460.0,0.00019726,2]
[374409806,1753291841603,-460.0,0.00019726,2]
[374409808,1753291841612,-460.0,0.00019726,2]
[374409810,1753291841622,-220.67,0.00019726,2]
[374409812,1753291841631,-460.0,0.00019726,2]
[374409814,1753291841641,-460.0,0.00019726,2]
[374409816,1753291841650,-460.0,0.00019726,2]
[374409818,1753291841659,-548.68092052,0.00019726,2]
[374409820,1753291841672,-1365.08,0.00019726,2]
[374409822,1753291841681,-1236.42,0.00019726,2]
[374409823,1753291841691,-800.31,0.00019726,2]
[374409826,1753291841700,-460.0,0.00019726,2]
[374409828,1753291841710,-1051.54,0.00019726,2]
[374409830,1753291841719,-363.3,0.00019734,2]
[374409832,1753291841729,-500.0,0.00019782,2]
[374409834,1753291841738,-500.0,0.00019782,2]
[374409836,1753291841748,-500.0,0.00019782,2]
[374409838,1753291841757,-500.0,0.00019782,2]
[374409840,1753291841767,-412.39905917,0.0001995,2]
[374409842,1753291841778,-500.0,0.00019973,2]
[374409844,1753291841787,-500.0,0.00019973,2]
[374409846,1753291841798,-500.0,0.00019973,2]
[374409848,1753291841808,-8506.46787395,0.0001999,2]
[374409850,1753291841818,-460.0,0.0002,2]
[374409852,1753291841829,-460.0,0.0002,2]
[374409854,1753291841838,-460.0,0.0002,2]
[374409856,1753291841847,-460.0,0.0002,2]
[374409858,1753291841856,-460.0,0.0002,2]
[374409860,1753291841866,-3350.23,0.0002,2]
[374409861,1753291841876,-460.0,0.0002,2]
[374409863,1753291841886,-460.0,0.0002,2]
[374409865,1753291841895,-1097.25,0.0002,2]
[374409868,1753291841905,-460.0,0.0002,2]
[374409870,1753291841916,-460.0,0.0002,2]
[374409871,1753291841927,-460.0,0.0002,2]
[374409873,1753291841937,-460.0,0.0002,2]
[374409876,1753291841946,-885.19,0.0002,2]
[374409878,1753291841956,-1277.21,0.0002,2]
[374409880,1753291841965,-460.0,0.0002,2]
[374409881,1753291841974,-460.0,0.0002,2]
[374409883,1753291841984,-460.0,0.0002,2]
[374409886,1753291841994,-460.0,0.0002,2]
[374409887,1753291842003,-1440.58,0.0002,2]
[374409889,1753291842012,-1608.72,0.0002,2]
[374409892,1753291842022,-460.0,0.0002,2]
[374409894,1753291842041,-871.96,0.0002,2]
[374409896,1753291842060,-9387.05962993,0.0002,2]
[374409898,1753291842070,-3196.09786644,0.0002,2]
[374409900,1753291842079,-362.89968044,0.0002,2]
[374409902,1753291842089,-460.0,0.0002,2]
[374409903,1753291842098,-37620.25626344,0.0002,2]
[374409905,1753291842107,-460.0,0.0002,2]
[374409907,1753291842117,-460.0,0.0002,2]
[374409909,1753291842126,-460.0,0.0002,2]
[374409911,1753291842136,-3462.1,0.0002,2]
[374409913,1753291842145,-460.0,0.0002,2]
[374409915,1753291842155,-978.77,0.0002,2]
[374409917,1753291842168,-460.0,0.0002,2]
[374409919,1753291842177,-460.0,0.0002,2]
[374409921,1753291842187,-460.0,0.0002,2]
[374409923,1753291842197,-460.0,0.0002,2]
[374409925,1753291842206,-460.0,0.0002,2]
[374409927,1753291842216,-460.0,0.0002,2]
[374409928,1753291842225,-252.90170744,0.0002,2]
[374409929,1753291842235,-1365.08,0.0002,2]
[374409930,1753291842245,-1236.42,0.0002,2]
[374409931,1753291842254,-800.31,0.0002,2]
[374409932,1753291842263,-460.0,0.0002,2]
[374409933,1753291842273,-503.14242823,0.00020017,2]
[374409934,1753291842283,-500.00932369,0.00020017,2]
[374409935,1753291842292,-2441.46107849,0.00020173,2]
[374409936,1753291842301,-460.0,0.00020273,2]
[374409937,1753291842311,-460.0,0.00020273,2]
[374409938,1753291842321,-460.0,0.00020273,2]
[374409939,1753291842330,-460.0,0.00020273,2]
[374409940,1753291842340,-3350.23,0.00020273,2]
[374409941,1753291842349,-460.0,0.00020273,2]
[374409942,1753291842359,-1097.25,0.00020273,2]
[374409943,1753291842369,-460.0,0.00020273,2]
[374409944,1753291842378,-460.0,0.00020273,2]
[374409945,1753291842388,-460.0,0.00020273,2]
[374409946,1753291842397,-460.0,0.00020273,2]
[374409947,1753291842407,-885.19,0.00020273,2]
[374409948,1753291842419,-378.22,0.00020273,2]
[374409949,1753291842428,-1277.21,0.00020273,2]
[374409951,1753291842438,-361.14432634,0.00020273,2]
[374409953,1753291842447,-460.0,0.00020273,2]
[374409955,1753291842457,-460.0,0.00020273,2]
[374409957,1753291842467,-1440.58,0.00020273,2]
[374409959,1753291842477,-1608.72,0.00020273,2]
[374409961,1753291842487,-460.0,0.00020273,2]
[374409963,1753291842498,-871.96,0.00020273,2]
[374409965,1753291842508,-460.0,0.00020273,2]
[374409967,1753291842518,-460.0,0.00020273,2]
[374409969,1753291842527,-460.0,0.00020273,2]
[374409971,1753291842536,-460.0,0.00020273,2]
[374409972,1753291842546,-3462.1,0.00020273,2]
[374409974,1753291842555,-978.77,0.00020273,2]
[374409976,1753291842564,-460.0,0.00020273,2]
[374409978,1753291842574,-460.0,0.00020273,2]
[374409980,1753291842584,-460.0,0.00020273,2]
[374409982,1753291842593,-460.0,0.00020273,2]
[374409984,1753291842603,-460.0,0.00020273,2]
[374409986,1753291842613,-460.0,0.00020273,2]
[374409988,1753291842623,-1365.08,0.00020273,2]
[374409991,1753291842633,-1236.42,0.00020273,2]
[374409992,1753291842642,-800.31,0.00020273,2]
[374409994,1753291842651,-460.0,0.00020273,2]
[374409997,1753291842660,-1000.0,0.0002033,2]
[374409999,1753291842672,-1000.0,0.0002033,2]
[374410001,1753291842682,-571.0935272,0.000204,2]
[374410003,1753291842691,-160.0,0.00020438,2]
[374410005,1753291842702,-1000.23849351,0.00020447,2]
[374410007,1753291842711,-460.0,0.00020547,2]
[374410009,1753291842722,-460.0,0.00020547,2]
[374410011,1753291842732,-465.69,0.00020547,2]
[374410013,1753291842741,-460.0,0.00020547,2]
[374410016,1753291842750,-3350.23,0.00020547,2]
[374410018,1753291842760,-460.0,0.00020547,2]
[374410020,1753291842769,-1097.25,0.00020547,2]
[374410022,1753291842778,-460.0,0.00020547,2]
[374410024,1753291842788,-460.0,0.00020547,2]
[374410026,1753291842797,-460.0,0.00020547,2]
[374410030,1753291842806,-460.0,0.00020547,2]
[374410032,1753291842816,-885.19,0.00020547,2]
[374410034,1753291842825,-1277.21,0.00020547,2]
[374410036,1753291842834,-460.0,0.00020547,2]
[374410038,1753291842843,-460.0,0.00020547,2]
[374410040,1753291842852,-1440.58,0.00020547,2]
[374410042,1753291842862,-1608.72,0.00020547,2]
[374410044,1753291842871,-460.0,0.00020547,2]
[374410046,1753291842880,-871.96,0.00020547,2]
[374410048,1753291842889,-460.0,0.00020547,2]
[374410050,1753291842898,-460.0,0.00020547,2]
[374410052,1753291842908,-460.0,0.00020547,2]
[374410054,1753291842920,-460.0,0.00020547,2]
[374410056,1753291842929,-3462.1,0.00020547,2]
[374410058,1753291842939,-978.77,0.00020547,2]
[374410060,1753291842948,-154.70710293,0.00020547,2]
[374410062,1753291842957,-460.0,0.00020547,2]
[374410064,1753291842966,-460.0,0.00020547,2]
[374410066,1753291842975,-460.0,0.00020547,2]
[374410068,1753291842984,-460.0,0.00020547,2]
[374410070,1753291842994,-460.0,0.00020547,2]
[374410072,1753291843003,-1365.08,0.00020547,2]
[374410074,1753291843013,-1236.42,0.00020547,2]
[374410076,1753291843022,-800.31,0.00020547,2]
[374410078,1753291843031,-544.95,0.00020631,2]
[374410080,1753291843040,-1110.116,0.00020728,2]
[374410082,1753291843049,-178.723,0.00020728,2]
[374410084,1753291843058,-5000.0,0.00020805,2]
[374410086,1753291843067,-628.54,0.00020812,3]
[374410088,1753291843077,-460.0,0.00020821,2]
[374410090,1753291843087,-460.0,0.00020821,2]
[374410092,1753291843096,-500.68,0.00020821,2]
[374410094,1753291843106,-3350.23,0.00020821,2]
[374410096,1753291843115,-578.8400369,0.00020821,2]
[374410097,1753291843124,-1097.25,0.00020821,2]
[374410099,1753291843133,-460.0,0.00020821,2]
[374410101,1753291843142,-460.0,0.00020821,2]
[374410103,1753291843151,-502.49735592,0.00020821,2]
[374410105,1753291843161,-460.0,0.00020821,2]
[374410107,1753291843179,-460.0,0.00020821,2]
[374410109,1753291843189,-885.19,0.00020821,2]
[374410111,1753291843199,-1277.21,0.00020821,2]
[374410113,1753291843209,-460.0,0.00020821,2]
[374410115,1753291843219,-460.0,0.00020821,2]
[374410117,1753291843228,-1440.58,0.00020821,2]
[374410119,1753291843237,-1608.72,0.00020821,2]
[374410121,1753291843247,-460.0,0.00020821,2]
[374410123,1753291843256,-871.96,0.00020821,2]
[374410125,1753291843266,-460.0,0.00020821,2]
[374410127,1753291843275,-460.0,0.00020821,2]
[374410129,1753291843284,-460.0,0.00020821,2]
[374410131,1753291843293,-547.56613861,0.00020821,2]
[374410133,1753291843303,-3462.1,0.00020821,2]
[374410135,1753291843312,-978.77,0.00020821,2]
[374410138,1753291843322,-525.92653414,0.00020821,2]
[374410141,1753291843331,-460.0,0.00020821,2]
[374410143,1753291843340,-460.0,0.00020821,2]
[374410145,1753291843349,-460.0,0.00020821,2]
[374410147,1753291843359,-401.4000639,0.00020821,2]
[374410149,1753291843368,-1365.08,0.00020821,2]
[374410151,1753291843377,-1236.42,0.00020821,2]
[374410153,1753291843386,-800.31,0.00020821,2]
[374410155,1753291843396,-412.39905917,0.00020822,2]
[374410157,1753291843406,-500.0,0.00020878,2]
[374410159,1753291843417,-595.20899026,0.00020878,2]
[374410161,1753291843427,-420.0,0.00020898,2]
[374410163,1753291843436,-250.12389181,0.000209,2]
[374410165,1753291843445,-260.0,0.00020986,2]
[374410167,1753291843454,-270.26850122,0.00021,2]
[374410169,1753291843464,-679.97430302,0.00021,10]
[374410170,1753291843473,-12193.70178198,0.00021,2]
[374410195,1753291843625,-460.0,0.00019178,2]
[374410198,1753291843635,-460.0,0.00019452,2]
[374410201,1753291843644,-460.0,0.00019726,2]
[374410204,1753291843653,-460.0,0.0002,2]
[374410207,1753291843666,-1051.54,0.0002,2]
[374410209,1753291843676,-460.0,0.00020273,2]
[374410211,1753291843686,-1051.54,0.00020273,2]
[374410213,1753291843695,-460.0,0.00020547,2]
[374410215,1753291843705,-460.0,0.00020821,2]
[374410217,1753291843714,-13069.71506763,0.00021,2]
[374410255,1753291844069,374.770847,0.00013699,2]
[374410264,1753291844145,-1051.54,0.00020547,2]
[374410266,1753291844154,-79.24,0.00020821,2]
[374410510,1753291846587,-972.3,0.00020821,2]
[374410512,1753291846597,-22856.78394,0.00021,2]
[374410514,1753291846608,-2514.14,0.00021081,3]
[374410516,1753291846617,-1257.08,0.00021081,3]
[374410518,1753291846626,-314.26,0.00021081,3]
[374410520,1753291846636,-460.0,0.00021095,2]
[374410522,1753291846646,-460.0,0.00021095,2]
[374410524,1753291846655,-3350.23,0.00021095,2]
[374410526,1753291846669,-1097.25,0.00021095,2]
[374410528,1753291846678,-460.0,0.00021095,2]
[374410530,1753291846687,-460.0,0.00021095,2]
[374410532,1753291846696,-206.70772875,0.00021095,2]
[374410533,1753291846707,-885.19,0.00021095,2]
[374410535,1753291846716,-1277.21,0.00021095,2]
[374410537,1753291846726,-460.0,0.00021095,2]
[374410539,1753291846734,-460.0,0.00021095,2]
[374410541,1753291846743,-1440.58,0.00021095,2]
[374410543,1753291846755,-1608.72,0.00021095,2]
[374410545,1753291846764,-460.0,0.00021095,2]
[374410547,1753291846773,-871.96,0.00021095,2]
[374410549,1753291846782,-460.0,0.00021095,2]
[374410551,1753291846791,-340.79473784,0.00021095,2]
[374410553,1753291846800,-460.0,0.00021095,2]
[374410555,1753291846809,-3462.1,0.00021095,2]
[374410557,1753291846818,-978.77,0.00021095,2]
[374410559,1753291846827,-460.0,0.00021095,2]
[374410561,1753291846836,-376.93103197,0.00021095,2]
[374410563,1753291846845,-460.0,0.00021095,2]
[374410565,1753291846856,-1365.08,0.00021095,2]
[374410567,1753291846865,-1236.42,0.00021095,2]
[374410569,1753291846874,-800.31,0.00021095,2]
[374410571,1753291846884,-460.0,0.00021095,2]
[374410573,1753291846893,-1051.54,0.00021095,2]
[374410575,1753291846903,-500.0,0.00021164,2]
[374410577,1753291846912,-160.0,0.00021203,2]
[374410579,1753291846927,-840.06856235,0.00021203,2]
[374410581,1753291846936,-214.67886746,0.00021204,2]
[374410583,1753291846946,-231.11583447,0.00021204,2]
[374410585,1753291846955,-160.0,0.00021204,2]
[374410587,1753291846964,-160.0,0.00021204,2]
[374410589,1753291846974,-12622.36869388,0.00021204,2]
[374410591,1753291846984,-160.0,0.00021204,2]
[374410593,1753291846993,-215.84326551,0.00021204,2]
[374410595,1753291847003,-476.696448,0.00021204,2]
[374410598,1753291847013,-526.15909479,0.00021204,2]
[374410600,1753291847023,-160.0,0.00021204,2]
[374410602,1753291847032,-174.8488499,0.00021369,2]
[374410604,1753291847042,-456.17504255,0.00021369,2]
[374410606,1753291847052,-3350.23,0.00021369,2]
[374410607,1753291847061,-1097.25,0.00021369,2]
[374410609,1753291847071,-460.0,0.00021369,2]
[374410612,1753291847080,-460.0,0.00021369,2]
[374410614,1753291847090,-885.19,0.00021369,2]
[374410616,1753291847099,-1277.21,0.00021369,2]
[374410618,1753291847109,-460.0,0.00021369,2]
[374410620,1753291847118,-460.0,0.00021369,2]
[374410622,1753291847128,-1440.58,0.00021369,2]
[374410624,1753291847138,-1112.63111585,0.00021369,2]
[374411238,1753291948186,508.42761844,0.00026027,120]
[374411484,1753292746142,-217.19102656,0.00018995,2]
[374411485,1753292746164,-1322.31291531,0.00019078,2]
[374411486,1753292746185,-300.0,0.00019177,2]
[374411487,1753292746207,-273.76868444,0.00019177,2]
[374411488,1753292746229,-500.0,0.00019177,2]
[374411489,1753292746252,-63.13984867,0.00019177,2]
[374411503,1753292756088,-455.54361968,0.00019177,2]
[374411504,1753292756110,-447.65784805,0.00019177,2]
[374411505,1753292756134,-181.5626968,0.00019177,2]
[374411604,1753292830140,-156.47206113,0.00019077,2]
[374411605,1753292830162,-447.28948203,0.00019078,2]
[374411606,1753292841087,-68.96290789,0.00019078,2]
[374411607,1753292841109,-97.78978221,0.00019081,2]
[374411661,1753293033170,-1468.48922497,0.00018221,2]
[374411683,1753293038410,-528.78757581,0.00018221,2]
[374411685,1753293038422,-776.7065474,0.00018221,2]
[374411687,1753293038434,-978.18793508,0.00018221,2]
[374411690,1753293038445,-506.03797984,0.00018221,2]
[374411692,1753293038455,-241.93277047,0.000189,2]
[374411694,1753293038465,-138.77549109,0.00019078,2]
[374411696,1753293038476,-312.94535009,0.00019078,2]
[374411698,1753293038486,-232.855527,0.00019081,2]
[374411700,1753293038495,-300.0,0.00019177,2]
[374411702,1753293038504,-318.4373032,0.00019177,2]
[374411704,1753293038514,-500.0,0.00019177,2]
[374411706,1753293038524,-500.0,0.00019177,2]
[374411708,1753293038533,-500.0,0.00019177,2]
[374411710,1753293038543,-966.93,0.00019178,2]
[374411712,1753293038552,-460.0,0.00019178,2]
[374411714,1753293038562,-460.0,0.00019178,2]
[374411716,1753293038572,-460.0,0.00019178,2]
[374411718,1753293038581,-460.0,0.00019178,2]
[374411720,1753293038590,-462.67202119,0.00019178,2]
[374411722,1753293038600,-192.13474523,0.00019178,2]
[374411724,1753293038609,-460.0,0.00019178,2]
[374411726,1753293038621,-460.0,0.00019178,2]
[374411728,1753293038630,-171.55857309,0.00019178,2]
[374411730,1753293038640,-355.9436841,0.00019178,2]
[374411732,1753293038653,-249.49411277,0.00019178,2]
[374411734,1753293038662,-460.0,0.00019178,2]
[374411736,1753293038671,-527.35429661,0.00019178,2]
[374411738,1753293038681,-460.0,0.00019178,2]
[374411740,1753293038690,-580.02764968,0.00019178,2]
[374411742,1753293038699,-460.0,0.00019178,2]
[374411744,1753293038709,-460.0,0.00019178,2]
[374411746,1753293038718,-2805.72,0.00019178,2]
[374411748,1753293038727,-252.90170744,0.00019178,2]
[374411750,1753293038737,-460.0,0.00019178,2]
[374411752,1753293038746,-460.0,0.00019178,2]
[374411754,1753293038756,-460.0,0.00019178,2]
[374411756,1753293038765,-229.20844127,0.00019178,2]
[374411758,1753293038777,-567.87898395,0.00019178,2]
[374411760,1753293038788,-294.85257478,0.00019178,2]
[374411762,1753293038797,-460.0,0.00019178,2]
[374411764,1753293038807,-460.0,0.00019178,2]
[374411767,1753293038817,-460.0,0.00019178,2]
[374411768,1753293038827,-460.0,0.00019178,2]
[374411771,1753293038839,-460.0,0.00019178,2]
[374411773,1753293038848,-460.0,0.00019178,2]
[374411775,1753293038858,-460.0,0.00019178,2]
[374411777,1753293038867,-460.0,0.00019178,2]
[374411778,1753293038879,-460.0,0.00019178,2]
[374411780,1753293038888,-460.0,0.00019178,2]
[374411782,1753293038897,-460.0,0.00019178,2]
[374411784,1753293038906,-460.0,0.00019178,2]
[374411786,1753293038917,-460.0,0.00019178,2]
[374411788,1753293038926,-460.0,0.00019178,2]
[374411790,1753293038936,-292.35583169,0.00019178,2]
[374411792,1753293038948,-167.64416831,0.00019178,2]
[374411795,1753293038957,-120.47583169,0.00019178,2]
[374411797,1753293038972,-339.52416831,0.00019178,2]
[374411799,1753293038982,-201.75447825,0.00019178,2]
[374411801,1753293038991,-447.04756775,0.00019178,2]
[374411803,1753293039001,-460.0,0.00019178,2]
[374411805,1753293039010,-460.0,0.00019178,2]
[374411807,1753293039019,-547.05455343,0.00019178,2]
[374411809,1753293039029,-460.0,0.00019178,2]
[374411811,1753293039038,-269.05320935,0.00019178,2]
[374411813,1753293039048,-460.0,0.00019178,2]
[374411815,1753293039058,-373.49665281,0.00019178,2]
[374411817,1753293039067,-460.0,0.00019178,2]
[374411819,1753293039076,-460.0,0.00019178,2]
[374411821,1753293039086,-460.0,0.00019178,2]
[374411823,1753293039096,-460.0,0.00019178,2]
[374411825,1753293039106,-500.0,0.00019178,2]
[374411827,1753293039116,-367.14967448,0.00019178,2]
[374411829,1753293039128,-460.0,0.00019178,2]
[374411831,1753293039137,-460.0,0.00019178,2]
[374411833,1753293039146,-460.0,0.00019178,2]
[374411835,1753293039156,-906.98,0.00019178,2]
[374411837,1753293039165,-460.0,0.00019178,2]
[374411839,1753293039174,-460.0,0.00019178,2]
[374411841,1753293039183,-460.0,0.00019178,2]
[374411843,1753293039193,-460.0,0.00019178,2]
[374411845,1753293039203,-460.0,0.00019178,2]
[374411847,1753293039212,-763.47,0.00019178,2]
[374411849,1753293039222,-460.0,0.00019178,2]
[374411851,1753293039231,-460.0,0.00019178,2]
[374411853,1753293039240,-460.0,0.00019178,2]
[374411855,1753293039249,-460.0,0.00019178,2]
[374411857,1753293039258,-460.0,0.00019178,2]
[374411860,1753293039268,-460.0,0.00019178,2]
[374411861,1753293039278,-460.0,0.00019178,2]
[374411863,1753293039287,-151.0,0.00019178,2]
[374411866,1753293039297,-511.11175927,0.00019178,2]
[374411868,1753293039308,-1242.06,0.00019178,2]
[374411870,1753293039318,-151.0,0.00019178,2]
[374411872,1753293039327,-705.25,0.00019178,2]
[374411873,1753293039336,-151.0,0.00019178,2]
[374411875,1753293039346,-151.0,0.00019178,2]
[374411877,1753293039355,-500.0,0.00019178,2]
[374411879,1753293039364,-460.0,0.00019178,2]
[374411881,1753293039376,-460.0,0.00019178,2]
[374411883,1753293039386,-460.0,0.00019178,2]
[374411885,1753293039395,-460.0,0.00019178,2]
[374411887,1753293039405,-151.0,0.00019178,2]
[374411889,1753293039414,-878.0,0.00019178,2]
[374411891,1753293039424,-803.1,0.00019178,2]
[374411893,1753293039434,-460.0,0.00019178,2]
[374411895,1753293039444,-151.0,0.00019178,2]
[374411897,1753293039453,-179.3227898,0.00019178,2]
[374411899,1753293039463,-151.0,0.00019178,2]
[374411901,1753293039472,-460.0,0.00019178,2]
[374411903,1753293039482,-460.0,0.00019178,2]
[374411905,1753293039491,-460.0,0.00019178,2]
[374411907,1753293039501,-222.7981528,0.00019178,2]
[374411909,1753293039510,-460.0,0.00019178,2]
[374411911,1753293039520,-460.0,0.00019178,2]
[374411913,1753293039529,-460.0,0.00019178,2]
[374411915,1753293039538,-460.0,0.00019178,2]
[374411917,1753293039547,-460.0,0.00019178,2]
[374411919,1753293039556,-2854.66,0.00019178,2]
[374411921,1753293039566,-890.21,0.00019178,2]
[374411923,1753293039575,-781.66,0.00019178,2]
[374411939,1753293039698,-460.0,0.00019178,2]
[374411942,1753293039744,-1392.24,0.00019178,2]